Cogmind - Beta 11.1 @@@ ROGUE MODE // 2022.08.25 @ 18:29:55 Player: lumberblack Result: Destroyed by Y-54 Guardian with Gatling Laser Performance ------------- Evolutions (4) 2000 Regions Visited (6) 1200 Robots Destroyed (1) 5 Value Destroyed (10) 10 Prototype IDs (0) 0 Alien Tech Used (0) 0 Bonus (700) 700 TOTAL SCORE: 3915 Bonus ------- Pacifist 200 Entered DSFs 500 Cogmind --------- Core Integrity 0/850 Matter 300/300 Energy 99/100 System Corruption 0% Temperature Cool (12) Movement Core (50) Location -6/Factory Parts ------- > --- POWER (1) -------- (None) > --- PROPULSION (5) --- (None) > --- UTILITY (7) ------ (None) > --- WEAPON (2) ------- (None) > --- INVENTORY (5) ---- Ion Engine Light Treads Wheel Compact Wheel Assault Rifle Peak State ------------ > --- POWER ------------ (None) > --- PROPULSION ------- Cesium-ion Thruster Cesium-ion Thruster Cesium-ion Thruster > --- UTILITY ---------- (None) > --- WEAPON ----------- (None) > --- INVENTORY -------- Ion Engine Light Treads Wheel Compact Wheel Assault Rifle [Rating: 9] Favorites ----------- Power None Propulsion Cesium-ion Thruster Flight Unit Cesium-ion Thruster Utility None Weapon None Build | -11 -10 -9 -8 -7 -7 -6 ------- Run | Scr Mat Mat Mat Fac DSF Fac Slots Evolved 8 | . . 2 2 2 . 2 Power . | . . . . . . . Propulsion 3 | . . 1 1 1 . . Utility 5 | . . 1 1 1 . 2 Weapon . | . . . . . . . Parts Attached 3 | . . . . . 3 . Power . | . . . . . . . Engine . | . . . . . . . Core . | . . . . . . . Reactor . | . . . . . . . Propulsion 3 | . . . . . 3 . Treads . | . . . . . . . Leg . | . . . . . . . Wheel . | . . . . . . . Hover . | . . . . . . . Flight 3 | . . . . . 3 . Utility . | . . . . . . . Device . | . . . . . . . Storage . | . . . . . . . Processor . | . . . . . . . Hackware . | . . . . . . . Protection . | . . . . . . . Artifact . | . . . . . . . Weapon . | . . . . . . . Energy Gun . | . . . . . . . Energy Cannon . | . . . . . . . Ballistic Gun . | . . . . . . . Ballistic Cannon . | . . . . . . . Launcher . | . . . . . . . Special Weapon . | . . . . . . . Impact Weapon . | . . . . . . . Slashing Weapon . | . . . . . . . Piercing Weapon . | . . . . . . . Special Melee Weapon . | . . . . . . . Unidentified Prototypes . | . . . . . . . Parts Lost 3 | . . . . . . 3 Power . | . . . . . . . Propulsion 3 | . . . . . . 3 Utility . | . . . . . . . Weapon . | . . . . . . . Highest Loss Streak 3 | . . . . . . 3 To Critical Strikes . | . . . . . . . Average Slot Usage (%) 2 | . . . . . . 7 Flight 2 | . . . . . . 7 Naked Turns 328 | . 33 99 35 72 12 77 Heaviest Build . | . . . . . . . Greatest Support 15 | 3 3 3 3 3 15 15 Greatest Overweight (x) . | . . . . . . . Average Overweight (x) . | . . . . . . . Largest Inventory Capacity 5 | . 5 5 5 5 5 5 Average Capacity 5 | . 5 5 5 5 5 5 Most Carried 5 | . 5 5 5 5 5 5 Average Carried 5 | . 5 5 5 5 5 5 Final Capacity 5 | 5 5 5 5 5 5 5 Final Carried 5 | 5 5 5 5 5 5 5 Class Distribution -------------------- 87% | Mutant 12% | Sprinter Dominant Class ---------------- Mutant | -10/Materials Mutant | -9/Materials Mutant | -8/Materials Mutant | -7/Factory Mutant | -7/DSF Mutant | -6/Factory Resources | -11 -10 -9 -8 -7 -7 -6 ----------- Run | Scr Mat Mat Mat Fac DSF Fac Matter Collected 230 | 200 . . . . . 30 Remotely . | . . . . . . . Salvage Created 20 | . . 20 . . . . Parts 2 | . . 2 . . . . Haulers Intercepted . | . . . . . . . Recyclers Shooed . | . . . . . . . Parts Field Recycled . | . . . . . . . Retrieved Matter . | . . . . . . . Parts Self-Destructed . | . . . . . . . Prevented . | . . . . . . . Kills | -11 -10 -9 -8 -7 -7 -6 ------- Run | Scr Mat Mat Mat Fac DSF Fac Combat Hostiles Destroyed 1 | . . 1 . . . . Melee 1 | . . 1 . . . . Classes Destroyed 1 | . . 1 . . . . Swarmer 1 | . . 1 . . . . Best Kill Streak 1 | . . 1 . . . . Combat Bots Only 1 | . . 1 . . . . Max Kills in Single Turn 1 | . . 1 . . . . Gunslinging . | . . . . . . . Exploded . | . . . . . . . Melee 1 | . . 1 . . . . Uniques/NPCs Destroyed . | . . . . . . . Combat | -11 -10 -9 -8 -7 -7 -6 -------- Run | Scr Mat Mat Mat Fac DSF Fac Damage Taken 1419 | . 28 261 145 . 56 929 Core 1325 | . 28 261 145 . 35 856 Absorbed by Shields . | . . . . . . . Core Remaining (%) 78 | 100 88 34 73 . 95 . Volleys Fired . | . . . . . . . Largest . | . . . . . . . Hottest . | . . . . . . . Shots Fired . | . . . . . . . Gun . | . . . . . . . Cannon . | . . . . . . . Launcher . | . . . . . . . Special . | . . . . . . . Kinetic . | . . . . . . . Thermal . | . . . . . . . Explosive . | . . . . . . . Electromagnetic . | . . . . . . . Robot Hit Streak . | . . . . . . . Robot Miss Streak . | . . . . . . . Penetration Max . | . . . . . . . Secondary Targets . | . . . . . . . Shots Hit Robots . | . . . . . . . Core Hits 2 | . . 1 . . . 1 Critical Kills . | . . . . . . . Critical Parts Destroyed . | . . . . . . . Critical Strikes . | . . . . . . . Melee Attacks . | . . . . . . . Impact . | . . . . . . . Slashing . | . . . . . . . Piercing . | . . . . . . . Sneak Attacks . | . . . . . . . Combat Hostiles . | . . . . . . . Follow-up Attacks . | . . . . . . . Damage Inflicted 24 | . . 22 . . . 2 Guns . | . . . . . . . Cannons . | . . . . . . . Explosions . | . . . . . . . Melee . | . . . . . . . Ramming 24 | . . 22 . . . 2 Kinetic . | . . . . . . . Thermal . | . . . . . . . Explosive . | . . . . . . . Electromagnetic . | . . . . . . . Impact . | . . . . . . . Slashing . | . . . . . . . Piercing . | . . . . . . . Highest Corruption 1 | . 1 . . . . . Average Corruption 1 | . 1 . . . . . Corruption Purged . | . . . . . . . Corruption Blocked . | . . . . . . . Overload Shots . | . . . . . . . Overflow Damage . | . . . . . . . Projectiles . | . . . . . . . Explosions . | . . . . . . . Melee . | . . . . . . . Knockbacks . | . . . . . . . Impact . | . . . . . . . Kinetic . | . . . . . . . Secondary . | . . . . . . . Self-Inflicted Damage 10 | . . 10 . . . . Shots . | . . . . . . . Rammed 5 | . . 3 . . . 2 Targets Rammed 5 | . . 3 . . . 2 Kicked . | . . . . . . . Crushed . | . . . . . . . Highest Temperature 8 | . 8 . . . . . Average Temperature 8 | . 8 . . . . . Received Heat Transfer 237 | . 33 30 72 . 12 90 Siege Activations . | . . . . . . . Robots Corrupted . | . . . . . . . Combat Hostiles . | . . . . . . . Parts Fried . | . . . . . . . Impact Corruptions . | . . . . . . . Robots Melted . | . . . . . . . Combat Hostiles . | . . . . . . . Parts Melted . | . . . . . . . Heat Transferred . | . . . . . . . Parts Sabotaged . | . . . . . . . Parts Stolen . | . . . . . . . Parts Stripped . | . . . . . . . Power Chain Reactions . | . . . . . . . Missiles Intercepted . | . . . . . . . Alert | -11 -10 -9 -8 -7 -7 -6 ------- Run | Scr Mat Mat Mat Fac DSF Fac Peak Influence 361 | . 5 65 78 50 53 361 Initial 38 | . . 1 27 35 38 27 Average 76 | . 3 22 55 47 41 160 Maximum Alert Level 1 | . . . . . . 1 Low Security (%) 88 | . 100 100 100 100 100 67 Level 1 11 | . . . . . . 32 Level 2 . | . . . . . . . Level 3 . | . . . . . . . Level 4 . | . . . . . . . Level 5 . | . . . . . . . High Security . | . . . . . . . Max Security . | . . . . . . . Squads Dispatched 3 | . . . . . . 3 Investigation 2 | . . . . . . 2 Extermination . | . . . . . . . Reinforcement 1 | . . . . . . 1 Assault . | . . . . . . . Garrison . | . . . . . . . Intercept . | . . . . . . . Searches Triggered . | . . . . . . . Construction Impeded . | . . . . . . . Haulers Reinforced . | . . . . . . . Active Scanning Responses . | . . . . . . . Cargo Convoy Interrupts . | . . . . . . . Stealth | -11 -10 -9 -8 -7 -7 -6 --------- Run | Scr Mat Mat Mat Fac DSF Fac Distress Signals 6 | . . . 3 . . 3 Communications Jammed . | . . . . . . . Distress Signals . | . . . . . . . Times Spotted 57 | . 2 8 12 . 2 33 Peak Tracking Total 16 | . 2 6 16 . 3 13 Tactical Retreats 6 | . . 2 . . . 4 Traps | -11 -10 -9 -8 -7 -7 -6 ------- Run | Scr Mat Mat Mat Fac DSF Fac Traps Triggered 1 | . . . . 1 . . Indirectly . | . . . . . . . Trap Hack Attempts . | . . . . . . . Triggered . | . . . . . . . Disarmed . | . . . . . . . Reprogrammed . | . . . . . . . Reused . | . . . . . . . Traps Extracted . | . . . . . . . Installed . | . . . . . . . Triggered . | . . . . . . . Machines | -11 -10 -9 -8 -7 -7 -6 ---------- Run | Scr Mat Mat Mat Fac DSF Fac Machines Disabled . | . . . . . . . Max in Single Turn . | . . . . . . . Machines Sabotaged . | . . . . . . . Garrisons Compromised . | . . . . . . . Overloaded Fab Kills . | . . . . . . . Hacking | -11 -10 -9 -8 -7 -7 -6 --------- Run | Scr Mat Mat Mat Fac DSF Fac Machines Accessed 8 | . 1 1 1 1 . 4 Terminals 8 | . 1 1 1 1 . 4 Fabricators . | . . . . . . . Repair Stations . | . . . . . . . Recycling Units . | . . . . . . . Scanalyzers . | . . . . . . . Garrison Access . | . . . . . . . Total Hacks 36 | . 6 9 7 3 . 11 Successful 15 | . 2 5 4 1 . 3 Failed 21 | . 4 4 3 2 . 8 Catastrophic 4 | . 1 1 1 . . 1 Database Lockouts . | . . . . . . . Manual 24 | . 5 9 7 . . 3 Terminals 36 | . 6 9 7 3 . 11 Fabricators . | . . . . . . . Repair Stations . | . . . . . . . Recycling Units . | . . . . . . . Scanalyzers . | . . . . . . . Garrison Access . | . . . . . . . Terminal Hacks 9 | . 1 3 2 1 . 2 Open DSF 2 | . . . . 1 . 1 Level Access Points 2 | . . 1 1 . . . Terminal Index 3 | . 1 1 1 . . . Alert Level 1 | . . . . . . 1 Unreport Threat 1 | . . 1 . . . . Fabricator Hacks . | . . . . . . . Repair Station Hacks . | . . . . . . . Recycling Unit Hacks . | . . . . . . . Scanalyzer . | . . . . . . . Garrison Access Hacks . | . . . . . . . Unauthorized Hacks 6 | . 1 2 2 . . 1 Terminals 6 | . 1 2 2 . . 1 Botnet 4 | . 1 1 1 . . 1 Disrupt 2 | . . 1 1 . . . Fabricators . | . . . . . . . Repair Stations . | . . . . . . . Recycling Units . | . . . . . . . Scanalyzers . | . . . . . . . Garrison Access . | . . . . . . . Data Cores Recovered . | . . . . . . . Used . | . . . . . . . Hacking Detections 8 | . 1 1 1 1 . 4 Full Trace Events 3 | . 1 . . . . 2 Feedback Events 1 | . 1 . . . . . Corruption 1 | . 1 . . . . . Feedback Blocked . | . . . . . . . Robot Schematics Acquired . | . . . . . . . Robots Built . | . . . . . . . Authchips . | . . . . . . . Time . | . . . . . . . Total Robot Build Rating . | . . . . . . . Part Schematics Acquired . | . . . . . . . Parts Built . | . . . . . . . Authchips . | . . . . . . . Time . | . . . . . . . Total Part Build Rating . | . . . . . . . Parts Repaired . | . . . . . . . Time . | . . . . . . . Parts Recycled . | . . . . . . . Recycled Matter . | . . . . . . . Retrieved Matter . | . . . . . . . Retrieved Components . | . . . . . . . Parts Scanalyzed . | . . . . . . . Part Schematics Acquired . | . . . . . . . Parts Damaged . | . . . . . . . Bothacking | -11 -10 -9 -8 -7 -7 -6 ------------ Run | Scr Mat Mat Mat Fac DSF Fac Used RIF Installer . | . . . . . . . Robots Hacked . | . . . . . . . Non-combat . | . . . . . . . Combat . | . . . . . . . Robot Hacks Applied . | . . . . . . . Relay Couplers Released . | . . . . . . . Fabnet Peak Effective % . | . . . . . . . Robots Rewired . | . . . . . . . Allies Hacked . | . . . . . . . Hacks Repelled . | . . . . . . . Allies | -11 -10 -9 -8 -7 -7 -6 -------- Run | Scr Mat Mat Mat Fac DSF Fac Total Allies . | . . . . . . . Largest Group . | . . . . . . . Highest-Rated Group . | . . . . . . . Highest-Rated Ally . | . . . . . . . Total Orders . | . . . . . . . Ally Attacks . | . . . . . . . Total Damage . | . . . . . . . Kills . | . . . . . . . Allies Corrupted . | . . . . . . . Allies Melted . | . . . . . . . Intel | -11 -10 -9 -8 -7 -7 -6 ------- Run | Scr Mat Mat Mat Fac DSF Fac Robot Analysis Total . | . . . . . . . Derelict Logs Recovered . | . . . . . . . Drone Launches . | . . . . . . . Drone Recoveries . | . . . . . . . Exploration | -11 -10 -9 -8 -7 -7 -6 ------------- Run | Scr Mat Mat Mat Fac DSF Fac Turns Passed 392 | . 33 99 35 72 19 134 Spaces Moved 839 | 1 65 192 69 142 33 337 Core 643 | 1 65 192 69 142 24 150 Treads . | . . . . . . . Legs . | . . . . . . . Wheels . | . . . . . . . Hover . | . . . . . . . Flight 196 | . . . . . 9 187 Fastest Speed 29 | 50 50 50 50 50 29 29 Average Speed 45 | 50 50 50 50 50 44 39 Slowest Speed 50 | 50 50 50 50 50 50 50 Overloaded Moves . | . . . . . . . Propulsion Burnouts . | . . . . . . . Robots Hopped 3 | . . . . . 1 2 Cave-ins Triggered . | . . . . . . . Exploration Rate (%) 17 | 2 19 25 14 8 42 15 Regions Visited 6 Branch Regions . Pre-discovered Areas . | . . . . . . . Known Exits Taken 3 | . . 1 1 1 . . Unknown Exits Taken 2 | 1 1 . . . . . Scrap Searched . | . . . . . . . Spaces Dug . | . . . . . . . Terrain Destroyed . | . . . . . . . Melee . | . . . . . . . Projectile . | . . . . . . . AOE . | . . . . . . . Terrain Rammed . | . . . . . . . Walls Destroyed . | . . . . . . . Machines Disabled . | . . . . . . . Actions | -11 -10 -9 -8 -7 -7 -6 --------- Run | Scr Mat Mat Mat Fac DSF Fac Total 839 | . 64 194 68 142 34 337 Wait . | . . . . . . . Move 828 | . 64 191 68 142 30 333 Hop 3 | . . . . . 1 2 Pick Up . | . . . . . . . Fast Attach 3 | . . . . . 3 . Attach . | . . . . . . . Detach . | . . . . . . . Swap . | . . . . . . . Drop . | . . . . . . . Fire . | . . . . . . . Melee . | . . . . . . . Ram 5 | . . 3 . . . 2 Kick . | . . . . . . . Crush . | . . . . . . . Escape Stasis . | . . . . . . . Rewire . | . . . . . . . Trap . | . . . . . . . Miscellaneous . | . . . . . . . Route ------- -11/Scrapyard -10/Materials -9/Materials (discovered 3 exits: *Mat x3) -8/Materials (discovered 3 exits: *Fac x3) -7/Factory -7/DSF -6/Factory History --------- Turn | Location | Event 1 | -11/Scrapyard | Released all parts (6) 1 | -11/Scrapyard | Discovered new exit (range 0) 1 | -11/Scrapyard | Entered Materials 32 | -10/Materials | Discovered new exit (range 4) 34 | -10/Materials | Entered another Materials area 34 | -9/Materials | Evolved 2 slots: Propulsion x1, Utility x1 101 | -9/Materials | Identified exit to Materials 111 | -9/Materials | Core integrity fell below 50% 133 | -9/Materials | Entered another Materials area 133 | -8/Materials | Evolved 2 slots: Propulsion x1, Utility x1 143 | -8/Materials | Identified exit to Factory 168 | -8/Materials | Entered Factory 168 | -7/Factory | Evolved 2 slots: Propulsion x1, Utility x1 240 | -7/Factory | Identified exit to DSF 240 | -7/Factory | Entered DSF 249 | -7/DSF | Discovered new exit (range 12) 259 | -7/DSF | Entered Factory 259 | -6/Factory | Evolved 2 slots: Utility x2 347 | -6/Factory | Lost 3 parts (3n) 352 | -6/Factory | Core integrity fell below 50% 375 | -6/Factory | Core integrity fell below 20% 393 | -6/Factory | Destroyed by Y-54 Guardian with Gatling Laser Last Messages --------------- 00357_ S-27 Virus destroyed. 00358_ O-16 Technician sends out distress signal. 00358_ O-16 Technician: "IFF HANDSHAKE FAILED. SECURING TERMINAL." 00362_ ALERT: Hostiles spotted, dispatching reinforcements to Terminal F006. 00365_ Connecting with Terminal... 00365_ ALERT: Suspicious activity at Terminal F013. Dispatching Investigation squad. 00369_ Slammed into K-01 Serf. 00376_ Slammed into T-07 Excavator. 00380_ Connecting with Terminal... >>Alert(Check) Current Alert Level: 1-S >>Trojan(Botnet) Trojan loaded successfully. Testing... Terminal linked with 0 systems. Awaiting botnet instructions. 00380_ ALERT: Suspicious activity at Terminal F003. Dispatching Investigation squad. Map ----- +----------------------------------------------------+ | ?????????????????????????????????????????????????? | | ?????????????????????????????????????????????????? | | ?????????????????????????????????????????????????? | | ?????????????????????????????????????????????????? | | ?????????????????????????????????????????????????? | | ?????????????????????????????????????????????????? | | ?????????????????????????????????????????????????? | | ?????????????????????????????????????????????????? | | ?????????????????????????????????????????????????? | | ?????????????????????????????????????????????????? | | ?????????????????????????????????????????????????? | | ?????????????????????????????????????????????????? | | ?????????????????????????????????????????????????? | | ?????????????????????????????????????????????????? | | ??????????????????????????????????????????????#### | | ?????????????????????????????????????????????? | | ?????????????????????????????????????????????? """ | | ?????????????????????????????????????????????? """ | | ????????????????????????????#+#??????????????? """ | | ????????????????????????????# #??????????????? """ | | ????????????????????????????# #??##########??? """ | | ?????????????????????????#### #### #????""" | | ?????????????????????????# # """ #???? | | ????????????############## u # """ #?###### | | ?????????? # """ ""## [ | | ?????????? @ Y s ""## | | ?????????? # T"## """ | | ?????????????#####+####### # !! ""## "T | | ?????????????????????????# # !! ""#? """ | | ?????????????????????????### ### #??? | | ???????????????????????????# ########/########/# | | ???????????????????????????# | | ???????????????????????????# ###########/##### | | ??????????????????????????? #???????? ??# | | ??????????????????????????###+##???????# ## | | ???????????????????????????????????????# ##[ | | ???????????????????????????????????????#!!! ! ## | | ???????????????????????????????????????#!=! ## | | ???????????????????????????????????????#!! #### | | ???????????????????????????????????????########??? | | ?????????????????????????????????????????????????? | | ?????????????????????????????????????????????????? | | ?????????????????????????????????????????????????? | | | | | | | | | | | | | | | +----------------------------------------------------+ Best States ------------- Heat Dissipation 37 Energy Generation 5 Energy Capacity 100 Matter Stores 300 Matter Capacity 300 Sight Range 16 Terrain Scan Density 10 Evasion (%) 64 Item Schematics ----------------- None Robot Schematics ------------------ None Fabricated ------------ Nothing Alien Tech Used ----------------- None Achievements -------------- None Challenges ------------ None Game ------ Seed BeamAntigravSink Manual? 0 Play Time 00:11:48 Cumulative 393.3 hours Start 2022.08.25 @ 18:21:08 End 2022.08.25 @ 18:29:55 Sessions 1 Manual Loads 0 Difficulty Rogue Special Mode None Game No. 388 Rogue 388 Adventurer 0 Explorer 0 Win Type - Total 8 Types 5/1/2/0/0/0/0/0/0 Lore% 57 Gallery% 78 Achievement% 65 Wizard Run 0 Options --------- ASCII 0 Keyboard 0 Movement Numpad Keybinds 0 Fullscreen 2 Font 18/TerminusBold Map View 76x50 Tactical HUD 1 Map Filters NONE Filters NONE Steam 1 RUN: 071e8192-ee5a-45b7-9421-4bb51272a908